bitfinex/quotes_ETHUSD_20250318
["timestamp","ask_amount","ask_price","bid_price","bid_amount"]
[1742275033378,16.91223502,1910.5,1910.4,0.39192508]
[1742275033747,27.82023502,1910.5,1910.4,0.39192508]
[1742275033947,3.819,1910.0,1909.8,5.23612]
[1742275034176,5.78500096,1909.9,1909.8,5.23612]
[1742275034343,5.78500096,1909.9,1909.7,5.23622]
[1742275034548,3.0,1909.9,1909.8,5.23615]
[1742275034767,5.78500096,1909.9,1909.8,5.23615]
[1742275037002,5.78500096,1909.9,1909.7,5.86328346]
[1742275037195,3.0,1909.9,1909.8,5.23615]
[1742275037866,3.0,1909.9,1909.7,5.86328346]
[1742275038093,3.0,1909.9,1909.7,5.23622]
[1742275038267,4.64456203,1909.8,1909.7,5.23622]
[1742275038595,4.64456203,1909.8,1909.7,5.84966658]
[1742275039694,4.64456203,1909.8,1909.7,6.68226658]
[1742275041011,4.64456203,1909.8,1909.7,5.84966658]
[1742275043415,4.64456203,1909.8,1909.7,5.23622]
[1742275044118,7.64456203,1909.8,1909.7,5.23622]
[1742275044489,8.44196203,1909.8,1909.6,5.86364346]
[1742275044799,7.64456203,1909.7,1909.6,5.23658]
[1742275045576,7.64456203,1909.7,1909.5,5.23686]
[1742275045800,7.64456203,1909.7,1909.5,5.23678]
[1742275046005,7.64456203,1909.7,1909.5,10.47362]
[1742275046514,7.64456203,1909.7,1909.6,5.23669]
[1742275046902,7.64456203,1909.7,1909.5,5.23678]
[1742275047104,7.64456203,1909.7,1909.6,5.23669]
[1742275048115,7.64456203,1909.7,1909.6,5.62804629]
[1742275048420,7.64456203,1909.7,1909.6,0.39135629]
[1742275048921,19.20254026,1909.7,1909.6,0.39135629]
[1742275049715,9.01157,1909.5,1909.4,0.39135629]
[1742275049876,13.65613203,1909.5,1909.4,0.39135629]
[1742275050525,14.04641963,1909.5,1909.4,0.39135629]
[1742275051821,3.0,1909.3,1909.1,5.62922629]
[1742275051975,4.64456203,1909.2,1909.1,0.39135629]
[1742275052175,4.64456203,1909.2,1909.1,5.62942629]
[1742275052996,4.64456203,1909.2,1909.1,5.23807]
[1742275053716,4.64456203,1909.2,1909.0,5.23823]
[1742275053919,4.64456203,1909.1,1909.0,5.23823]
[1742275055318,4.64456203,1909.1,1908.9,5.62986629]
[1742275055493,4.64456203,1909.0,1908.9,5.62986629]
[1742275056717,4.64456203,1909.0,1908.9,5.23851]
[1742275057820,4.64456203,1909.0,1908.8,5.23878]
[1742275058022,4.64456203,1908.9,1908.8,5.23878]
[1742275058199,4.64456203,1908.9,1908.8,5.62981933]
[1742275060126,4.64456203,1908.9,1908.8,5.23878]
[1742275062736,8.23811,1909.1,1908.8,5.23878]
[1742275062940,4.64456203,1908.9,1908.8,5.23878]
[1742275063602,5.44496203,1908.9,1908.7,0.39103933]
[1742275063936,4.64456203,1908.8,1908.7,0.39103933]
[1742275064313,4.64456203,1908.8,1908.7,5.63019933]
[1742275065621,4.64456203,1908.8,1908.7,5.23916]
[1742275066347,4.64456203,1908.8,1908.6,5.63038933]
[1742275066560,4.64456203,1908.7,1908.6,5.23935]
[1742275068341,4.64456203,1908.7,1908.6,5.23944]
[1742275068637,8.10901823,1908.7,1908.5,10.47908]
[1742275068950,4.64456203,1908.6,1908.5,10.47908]
[1742275069853,4.64456203,1908.6,1908.5,5.23948]
[1742275073440,4.64456203,1908.6,1908.4,5.23988]
[1742275073441,3.0,1908.5,1908.4,5.23988]
[1742275073634,4.64456203,1908.5,1908.4,5.23988]
[1742275074466,1.16259318,1909.0,1908.4,7.594782]
[1742275074669,1.16259318,1909.0,1908.5,5.23971]
[1742275074670,3.0,1908.8,1908.5,5.23971]
[1742275074967,4.64456203,1908.8,1908.7,5.23916]
[1742275076435,4.16259318,1909.0,1908.8,5.23889]
[1742275076632,7.64456203,1908.9,1908.8,5.23889]
[1742275077847,7.64456203,1908.9,1908.7,5.23906]
[1742275078164,4.64456203,1908.8,1908.7,5.23906]
[1742275079362,7.64456203,1908.9,1908.8,5.23889]
[1742275080031,3.0,1908.9,1908.8,5.23889]
[1742275080226,0.7672,1909.1,1908.8,6.286685]
[1742275080433,5.98763,1909.3,1909.0,5.23834]
[1742275080747,7.64456203,1909.1,1909.0,5.23834]
[1742275081383,4.64456203,1909.3,1909.2,5.23779]
[1742275081545,7.64456203,1909.3,1909.2,5.23779]
[1742275081950,4.64456203,1909.3,1909.2,5.23779]
[1742275082449,4.64456203,1909.4,1909.3,5.23743]
[1742275083445,4.64456203,1909.4,1909.3,0.39138998]
[1742275083635,4.64456203,1909.4,1909.3,5.62890998]
[1742275084616,5.94545823,1909.4,1909.3,0.39138998]
[1742275085780,8.94545823,1909.4,1909.3,0.39138998]
[1742275086151,8.94545823,1909.4,1909.2,0.39138998]
[1742275086351,4.64456203,1909.3,1909.2,0.39138998]
[1742275086646,7.64456203,1909.3,1909.2,0.39138998]
[1742275087464,7.64456203,1909.3,1909.1,5.23789]
[1742275087676,4.64456203,1909.2,1909.1,5.23789]
[1742275089163,4.64456203,1909.2,1909.1,5.63028537]
[1742275089897,4.64456203,1909.2,1909.1,0.39239537]
[1742275090055,5.93277423,1909.2,1909.1,0.39239537]
[1742275090258,14.98906423,1909.2,1909.1,0.39239537]
[1742275090763,9.75127423,1909.2,1909.1,0.39239537]
[1742275091172,9.75127423,1909.2,1909.0,5.23819]
[1742275091582,4.64456203,1909.1,1909.0,5.23819]
[1742275092557,7.64456203,1909.1,1909.0,5.23819]
[1742275094662,7.64456203,1909.1,1909.0,5.63060898]
[1742275097188,7.64456203,1909.1,1909.0,5.23819]
[1742275097670,7.64456203,1909.1,1909.0,5.63057468]
[1742275104979,3.0,1909.1,1909.0,6.39457468]
[1742275105169,4.64456203,1909.3,1909.2,5.23779]
[1742275105507,7.64456203,1909.3,1909.2,5.23779]
[1742275105707,3.0,1909.3,1909.2,5.23779]
[1742275106008,3.0,1909.3,1909.2,7.60647]
[1742275106193,3.0,1909.3,1909.2,7.99885468]
[1742275106391,4.64456203,1909.5,1909.4,5.23724]
[1742275106903,7.64456203,1909.5,1909.4,5.23724]
[1742275107494,7.64456203,1909.5,1909.4,5.62962468]
[1742275110314,7.64456203,1909.5,1909.4,5.23724]
[1742275110891,7.64456203,1909.5,1909.4,5.62978567]
[1742275114813,8.47506203,1909.5,1909.4,0.39254567]
[1742275115001,9.32256823,1909.5,1909.4,0.39254567]
[1742275115313,14.55953823,1909.5,1909.4,0.39254567]
[1742275116215,9.32256823,1909.5,1909.4,0.39254567]
[1742275117091,3.0,1909.4,1909.2,10.4753]
[1742275117293,4.64456203,1909.3,1909.2,10.4753]
[1742275117615,7.64456203,1909.3,1909.2,5.23764]
[1742275117811,3.0,1909.3,1909.2,5.23764]
[1742275118010,7.64456203,1909.3,1909.2,5.23764]
[1742275118626,7.64456203,1909.3,1909.2,5.63010273]
[1742275120785,3.0,1909.3,1909.2,6.795148]
[1742275122244,7.64456203,1909.6,1909.5,5.23697]
[1742275122714,3.0,1909.6,1909.5,5.98887]
[1742275125033,5.40176203,1909.9,1909.7,5.23642]
[1742275125199,5.40176203,1909.9,1909.8,5.23615]
[1742275125529,7.64456203,1909.9,1909.8,5.23615]
[1742275128434,3.0,1909.9,1909.8,6.283407]
[1742275131113,7.64456203,1910.2,1910.1,5.23532]
[1742275131920,3.0,1910.1,1910.0,5.23548]
[1742275132125,4.64456203,1910.1,1910.0,5.23548]
[1742275138311,4.64456203,1910.1,1909.9,5.23581]
[1742275138511,7.64456203,1910.0,1909.9,5.23581]
[1742275143848,3.0,1910.0,1909.9,5.23581]
[1742275144062,3.0,1910.0,1909.9,6.283004]
[1742275144229,3.0,1910.0,1909.9,7.073604]
[1742275146155,0.7926,1910.4,1910.3,5.23477]
[1742275146358,3.0,1910.3,1910.2,5.23489]
[1742275146559,4.64456203,1910.3,1910.2,5.23489]
[1742275147075,4.64456203,1910.3,1910.1,5.23527]
[1742275147374,4.64456203,1910.2,1910.1,5.23527]
[1742275148161,8.47086203,1910.2,1910.0,5.23548]
[1742275148325,3.0,1910.1,1910.0,5.23548]
[1742275148725,5.47086203,1910.2,1910.0,10.47095]
[1742275148925,5.47086203,1910.2,1910.1,5.23532]
[1742275149361,4.64456203,1910.3,1910.2,5.23501]
[1742275153245,8.43616203,1910.3,1910.1,5.23532]
[1742275153474,8.43616203,1910.3,1910.0,5.86293154]
[1742275153673,8.43616203,1910.3,1910.0,0.62747154]
[1742275153877,7.64456203,1910.3,1910.1,5.2351]
[1742275154097,1.3202,1910.5,1910.4,5.2345]
[1742275154296,7.64456203,1910.4,1910.3,5.23466]
[1742275156091,7.64456203,1910.4,1910.2,10.46993]
[1742275156391,4.64456203,1910.3,1910.1,5.86269154]
[1742275156766,4.64456203,1910.3,1910.1,5.86265154]
[1742275156968,4.64456203,1910.3,1910.2,5.23505]
[1742275159258,4.64456203,1910.3,1910.2,6.359273]
[1742275159662,4.64456203,1910.3,1910.2,6.98761361]
[1742275159879,4.64456203,1910.3,1910.2,5.86339061]
[1742275160978,4.64456203,1910.3,1910.2,5.23505]
[1742275163102,5.42886203,1910.3,1910.1,10.47031]
[1742275163297,5.42886203,1910.3,1910.2,5.23505]
[1742275164115,4.64456203,1910.3,1910.2,5.23505]
[1742275164298,4.64456203,1910.3,1910.2,6.94920852]
[1742275164504,4.64456203,1910.3,1910.2,5.23505]
[1742275166315,8.16396203,1910.5,1910.4,5.2345]
[1742275172214,3.0,1910.4,1910.3,5.23466]
[1742275172443,7.64456203,1910.4,1910.2,5.235]
[1742275173449,7.64456203,1910.4,1910.1,5.2352]
[1742275173637,3.0,1910.4,1910.2,5.23497]
[1742275173839,4.64456203,1910.3,1910.2,5.23497]
[1742275174153,4.64456203,1910.3,1910.2,5.86333158]
[1742275175562,4.64456203,1910.3,1910.2,0.62836158]
[1742275176157,4.64456203,1910.3,1910.2,5.86341158]
[1742275176757,7.64456203,1910.4,1910.3,5.23477]
[1742275177422,7.64456203,1910.4,1910.2,5.86341158]
[1742275177762,4.64456203,1910.3,1910.2,5.86341158]
[1742275179964,14.39388823,1910.3,1910.2,0.62836158]
[1742275180539,14.45818823,1910.3,1910.2,0.62836158]
[1742275180752,19.34318823,1910.3,1910.2,0.62836158]
[1742275181073,19.34318823,1910.3,1910.2,1e-08]
[1742275181570,19.34318823,1910.3,1909.6,5.23666]
[1742275181571,3.7829,1909.9,1909.6,5.23666]
[1742275181768,4.64456203,1909.7,1909.5,5.23693]
[1742275182074,9.01885,1909.9,1909.5,5.23693]
[1742275182075,4.64456203,1909.6,1909.5,5.23693]
[1742275182378,4.64456203,1909.7,1909.6,5.23659]
[1742275184639,7.64456203,1909.7,1909.6,5.23659]
[1742275191577,3.0,1909.7,1909.6,5.23659]
[1742275192159,3.0,1909.7,1909.6,6.04799]
[1742275192356,3.0,1909.7,1909.6,7.176482]
[1742275193274,3.0,1909.7,1909.6,6.04799]
[1742275197779,7.64456203,1909.7,1909.6,5.23659]
[1742275198402,4.64456203,1909.7,1909.6,5.23659]
[1742275199067,7.64456203,1909.7,1909.6,5.23659]
[1742275200068,7.64456203,1909.7,1909.5,10.47367]
[1742275200400,8.44776203,1909.7,1909.6,5.23669]
[1742275200777,7.64456203,1909.7,1909.6,5.23669]
[1742275200975,3.0,1909.7,1909.6,5.23669]
[1742275202769,7.64456203,1909.7,1909.6,5.23669]
[1742275204704,0.7871,1909.6,1909.5,5.23682]
[1742275205009,3.0,1909.8,1909.6,5.2366]
[1742275205216,7.64456203,1909.7,1909.6,5.2366]
[1742275209709,7.64456203,1909.7,1909.6,5.7274161]
[1742275216921,7.64456203,1909.7,1909.6,0.4908161]
[1742275217085,8.44696203,1909.7,1909.6,0.4908161]
[1742275219124,3.0,1909.6,1909.5,5.23696]
[1742275219288,7.64456203,1909.6,1909.5,5.23696]
[1742275220401,7.64456203,1909.6,1909.5,5.72831801]
[1742275221001,3.0,1909.6,1909.5,5.72831801]
[1742275221397,4.886,1909.8,1909.7,5.23628]
[1742275221398,7.64456203,1909.8,1909.7,5.23628]
[1742275221600,7.64456203,1909.8,1909.7,10.47247]
[1742275222306,7.64456203,1909.8,1909.7,5.72754801]
[1742275226840,3.0,1909.8,1909.7,5.72754801]
[1742275230439,3.0,1909.8,1909.7,6.48074801]
[1742275230644,3.0,1909.8,1909.7,8.14108781]
[1742275233964,4.64352388,1910.0,1909.9,5.23587]
[1742275234880,4.64352388,1910.1,1910.0,5.23555]
[1742275235227,5.43342388,1910.2,1910.1,5.23532]
[1742275236123,5.43342388,1910.2,1910.0,10.96238801]
[1742275236460,7.64352388,1910.1,1910.0,5.72683801]
[1742275237063,7.64352388,1910.1,1910.0,5.23548]
[1742275240928,7.64352388,1910.1,1909.9,5.23581]
[1742275241128,4.64352388,1910.0,1909.9,5.23581]
[1742275242666,7.64352388,1910.1,1910.0,5.2356]
[1742275243964,4.64352388,1910.3,1910.2,5.23505]
[1742275247078,3.0,1910.4,1910.2,5.23505]
[1742275247385,0.5194,1910.5,1910.4,5.2345]
[1742275247954,5.16292388,1910.5,1910.4,5.2345]
[1742275249247,3.0,1910.4,1910.3,5.23466]
[1742275249449,7.64352388,1910.4,1910.3,5.23466]
[1742275251676,7.64352388,1910.4,1910.2,5.72433989]
[1742275251855,8.43962388,1910.4,1910.2,10.95925989]
[1742275252178,4.64352388,1910.3,1910.2,10.95925989]
[1742275252384,8.43962388,1910.4,1910.3,5.23477]
[1742275253788,8.43962388,1910.4,1910.2,5.23492]
[1742275253953,8.43962388,1910.4,1910.3,5.23477]
[1742275255667,7.64352388,1910.4,1910.3,5.23477]
[1742275256283,7.64352388,1910.4,1910.2,5.23492]
[1742275256688,7.64352388,1910.4,1910.3,5.23477]
[1742275256891,7.64352388,1910.4,1910.2,10.46984]
[1742275257774,7.64352388,1910.4,1910.2,5.23492]
[1742275257978,8.43332388,1910.4,1910.2,5.23492]
[1742275258490,4.64352388,1910.3,1910.1,5.23531]
[1742275258694,4.64352388,1910.3,1910.1,10.47054]
[1742275259694,4.64352388,1910.3,1910.2,5.23505]
[1742275260457,4.64352388,1910.3,1910.2,5.72482284]
[1742275265114,2.785402,1910.3,1910.2,5.72482284]
[1742275282737,6.9140422,1910.3,1910.2,0.48977284]
[1742275282908,12.1488122,1910.3,1910.2,0.48977284]
[1742275283312,6.9140422,1910.3,1910.2,0.48977284]
[1742275284818,3.0,1910.2,1910.1,5.23519]
[1742275285019,5.785402,1910.2,1910.1,5.23519]
[1742275286038,5.785402,1910.2,1910.1,5.72572038]
[1742275286904,2.785402,1910.3,1910.2,5.23505]
[1742275287541,5.785402,1910.3,1910.2,5.23505]
[1742275287752,3.0,1910.3,1910.2,5.23505]
[1742275287921,5.785402,1910.4,1910.3,5.23477]
[1742275289311,5.785402,1910.4,1910.3,5.72530038]
[1742275290554,3.0,1910.4,1910.3,5.72530038]
[1742275290733,5.785402,1910.4,1910.3,5.72530038]
[1742275291050,8.570804,1910.4,1910.3,0.49053038]
[1742275291344,6.7700324,1910.4,1910.3,0.49053038]
[1742275292246,6.7700324,1910.4,1910.3,5.72530038]
[1742275292548,5.785402,1910.4,1910.3,5.72530038]
[1742275292845,5.785402,1910.4,1910.3,5.23477]
[1742275293646,0.7889,1910.3,1910.1,5.23521]
[1742275293947,5.785402,1910.2,1910.1,5.23521]
[1742275295820,5.785402,1910.2,1910.1,5.72522172]
[1742275297223,5.785402,1910.2,1910.1,6.38426837]
[1742275298011,3.0,1910.2,1910.1,6.38426837]
[1742275299315,5.785402,1910.4,1910.3,5.23477]
[1742275300555,5.785402,1910.4,1910.3,5.72478172]
[1742275305151,3.0,1910.4,1910.3,5.72478172]
[1742275305356,3.0,1910.4,1910.3,6.89743289]
[1742275306461,5.785402,1910.4,1910.3,6.89743289]
[1742275306847,5.785402,1910.4,1910.3,5.72478172]
[1742275309459,3.0,1910.4,1910.3,5.72478172]
[1742275310427,3.5194,1910.5,1910.4,6.0397]
[1742275310629,3.304802,1910.5,1910.4,6.0397]
[1742275310866,3.5194,1910.5,1910.4,6.0397]
[1742275311164,0.5194,1910.5,1910.4,7.21614817]
[1742275311561,0.5194,1910.5,1910.4,7.70615989]
[1742275313342,0.5194,1910.5,1910.4,12.58815989]
[1742275315079,0.5194,1910.5,1910.4,12.58575989]
[1742275317439,0.5194,1910.5,1910.4,15.37116189]
[1742275317977,1e-05,1910.5,1910.4,15.92116189]
[1742275318547,1e-05,1910.5,1910.4,13.13575989]
[1742275318745,1e-05,1910.5,1910.4,15.92116189]
[1742275319280,1e-05,1910.5,1910.4,7.70375989]
[1742275319455,1e-05,1910.5,1910.4,12.58575989]
[1742275319852,1e-05,1910.5,1910.4,7.70375989]
[1742275320150,2.785412,1910.5,1910.4,6.90095989]
[1742275320368,1e-05,1910.5,1910.4,6.90095989]
[1742275321089,2.785412,1910.5,1910.4,6.90095989]
[1742275321382,1e-05,1910.5,1910.4,5.72451172]
[1742275321742,5.41699835,1910.5,1910.4,5.72451172]
[1742275322348,5.41698835,1910.5,1910.4,5.72451172]
[1742275323177,5.41698835,1910.5,1910.3,5.23477]
[1742275323376,4.64078835,1910.4,1910.3,5.23477]
[1742275323951,4.64078835,1910.4,1910.2,5.72504172]
[1742275324146,4.64078835,1910.3,1910.2,5.72504172]
[1742275324348,13.64595835,1910.3,1910.2,0.49001172]
[1742275324582,16.386819,1910.3,1910.2,0.49001172]
[1742275324884,8.23505,1910.2,1910.1,0.49001172]
[1742275325084,18.52723835,1910.2,1910.1,0.49001172]
[1742275327247,3.8186,1910.0,1909.7,5.23625]
[1742275327447,3.8186,1910.0,1909.7,10.47253]
[1742275328650,4.64078835,1909.9,1909.8,10.47207]
[1742275329688,7.64078835,1910.0,1909.9,5.23587]
[1742275329853,3.0,1910.0,1909.9,5.23587]
[1742275330360,10.50551598,1910.3,1910.0,5.2356]
[1742275330361,7.64078835,1910.2,1910.0,5.2356]
[1742275330781,4.64078835,1910.1,1910.0,5.2356]
[1742275331282,3.0,1910.0,1909.9,5.23578]
[1742275331852,3.0,1910.0,1909.9,6.3876897]
[1742275332071,5.40428835,1910.3,1910.0,5.2356]
[1742275332275,7.64078835,1910.2,1910.1,5.23532]
[1742275333762,7.64078835,1910.2,1910.0,5.23536]
[1742275333978,4.64078835,1910.1,1909.9,5.23584]
[1742275334184,4.64078835,1910.0,1909.9,5.23584]
[1742275336408,4.64078835,1910.0,1909.9,6.3877567]
[1742275336990,4.64078835,1910.0,1909.9,5.23584]
[1742275342918,7.64078835,1910.0,1909.9,5.23584]
[1742275344018,3.0,1910.0,1909.9,5.23584]
[1742275344201,3.0,1910.0,1909.9,6.02484]
[1742275346107,4.64078835,1910.1,1910.0,5.2356]
[1742275346311,5.6691,1910.6,1910.3,5.23477]
[1742275346531,4.64078835,1910.4,1910.3,10.46938]
[1742275346689,7.64078835,1910.4,1910.3,10.46938]
[1742275350584,4.64078835,1910.4,1910.3,10.46938]
[1742275350789,4.64078835,1910.4,1910.3,11.591408]
[1742275353524,4.64078835,1910.5,1910.3,11.591298]
[1742275353690,4.64078835,1910.5,1910.4,5.23426]
[1742275361140,5.45508835,1910.5,1910.3,11.591268]
[1742275361449,4.64078835,1910.4,1910.3,10.46924]
[1742275363621,4.64078835,1910.4,1910.3,11.15353297]
[1742275366742,4.64078835,1910.4,1910.3,5.91890297]
[1742275366940,4.64078835,1910.4,1910.3,5.23461]
[1742275367572,4.64078835,1910.4,1910.0,10.47103]
[1742275367573,0.804,1910.3,1910.0,10.47103]
[1742275367748,4.64078835,1910.1,1910.0,5.23549]
[1742275370646,4.64078835,1910.1,1909.9,5.23584]
[1742275370856,4.64078835,1910.0,1909.9,5.23584]
[1742275378274,4.64078835,1910.0,1909.8,10.47213]
[1742275378477,4.64078835,1909.9,1909.8,5.23604]
[1742275379146,4.64078835,1909.9,1909.7,5.23631]
[1742275379379,4.64078835,1909.8,1909.7,5.23631]
[1742275380474,0.7562,1909.6,1909.4,5.23721]
[1742275382457,5.99291,1909.6,1909.3,10.47485]
[1742275382780,4.64078835,1909.4,1909.1,5.23786]
[1742275382969,4.64078835,1909.2,1909.1,5.23786]
[1742275383968,7.64078835,1909.2,1909.1,5.23786]
[1742275384283,7.64078835,1909.2,1909.0,10.47645]
[1742275384500,4.64078835,1909.1,1909.0,10.47645]
[1742275386487,4.64078835,1909.1,1909.0,5.23822]
[1742275387285,5.40898835,1909.1,1908.9,5.2384]
[1742275387449,4.64078835,1909.0,1908.9,5.2384]
[1742275388884,4.64078835,1909.1,1909.0,6.00686]
[1742275390789,7.64078835,1909.2,1909.1,5.23807]
[1742275393665,7.64078835,1909.2,1909.0,5.23818]
[1742275393855,4.64078835,1909.1,1909.0,5.23818]
[1742275394780,4.64078835,1909.1,1908.9,6.286337]
[1742275394981,4.64078835,1909.0,1908.9,5.23845]
[1742275396603,4.64078835,1909.1,1909.0,5.23826]
[1742275398472,7.64078835,1909.2,1909.1,5.23807]
[1742275398682,7.64078835,1909.2,1909.1,6.05317]
[1742275399503,7.64078835,1909.2,1909.1,5.23807]
[1742275402003,7.64078835,1909.2,1909.1,6.367213]
[1742275406398,4.64078835,1909.4,1909.2,10.47546]
[1742275406724,7.64078835,1909.3,1909.2,5.23779]
[1742275412647,7.64078835,1909.3,1909.2,5.7289894]
[1742275415622,7.64078835,1909.3,1909.2,0.4911994]
[1742275415937,9.16216719,1909.3,1909.2,0.4911994]
[1742275416439,14.39968719,1909.3,1909.2,0.4911994]
[1742275416615,9.16216719,1909.3,1909.2,0.4911994]
[1742275417031,3.0,1909.2,1909.0,5.2383]
[1742275417354,4.64078835,1909.1,1909.0,5.2382]
[1742275418743,4.64078835,1909.1,1909.0,5.72941517]
[1742275420267,7.64078835,1909.1,1909.0,5.72941517]
[1742275421450,7.64078835,1909.1,1909.0,0.49121517]
[1742275422241,7.64078835,1909.1,1909.0,5.72955517]
[1742275425225,8.41028835,1909.1,1909.0,0.49121517]
[1742275426428,8.41028835,1909.1,1908.9,5.2385]
[1742275426754,4.64078835,1909.0,1908.9,5.2385]
[1742275427560,4.64078835,1909.0,1908.9,5.63122284]
[1742275427754,4.64078835,1909.0,1908.9,6.12212569]
[1742275429951,4.64078835,1909.0,1908.9,5.72940285]
[1742275430197,3.0,1909.1,1909.0,5.23834]
[1742275430927,7.64078835,1909.1,1909.0,5.23834]
[1742275431258,7.64078835,1909.1,1909.0,5.63096338]
[1742275431622,7.64078835,1909.1,1909.0,6.12186623]
[1742275434152,0.805,1909.5,1909.1,5.23807]
[1742275434352,4.64078835,1909.4,1909.3,5.2375]
[1742275434666,7.64078835,1909.4,1909.3,5.23752]
[1742275434969,4.64078835,1909.4,1909.3,5.23752]
[1742275436251,4.64078835,1909.4,1909.2,10.96617285]
[1742275436466,7.64078835,1909.3,1909.2,5.2376]
[1742275438949,7.64078835,1909.3,1909.2,5.72814057]
[1742275439384,3.0,1909.3,1909.2,7.34855163]
[1742275440260,7.64078835,1909.3,1909.2,7.74093982]
[1742275440637,3.0,1909.3,1909.2,7.74093982]
[1742275441378,4.64078835,1909.5,1909.4,5.23724]
[1742275441880,7.64078835,1909.5,1909.4,5.23724]
[1742275442091,7.64078835,1909.5,1909.4,6.284704]
[1742275444274,7.64078835,1909.6,1909.5,5.23697]
[1742275444586,5.6575,1909.9,1909.6,5.23649]
[1742275444882,5.6575,1909.9,1909.7,5.23641]
[1742275445244,3.0,1909.8,1909.7,5.23641]
[1742275445580,7.64078835,1909.8,1909.7,5.23641]
[1742275449293,8.57450048,1909.8,1909.7,5.23641]
[1742275449747,5.78725024,1909.8,1909.7,5.23641]
[1742275449950,5.78725024,1909.8,1909.7,6.2837]
[1742275450384,8.57450048,1909.8,1909.7,6.2837]
[1742275450696,8.57450048,1909.8,1909.5,5.72624849]
[1742275450859,2.78725024,1909.6,1909.5,5.72616849]
[1742275451355,2.78725024,1909.6,1909.5,5.23686]
[1742275453167,4.64649648,1909.6,1909.5,5.23686]
[1742275464904,4.64649648,1909.6,1909.5,5.72754345]
[1742275466806,4.64649648,1909.6,1909.5,6.12012252]
[1742275468208,3.7678,1909.9,1909.8,5.23615]
[1742275468406,5.41429648,1909.9,1909.8,5.23615]
[1742275468575,5.41429648,1909.9,1909.7,5.2363]
[1742275468774,7.64649648,1909.8,1909.7,5.2363]
[1742275469208,3.0,1909.7,1909.6,5.23663]
[1742275469401,4.64649648,1909.7,1909.6,5.23663]
[1742275470098,4.64649648,1909.7,1909.5,5.23684]
[1742275470301,4.64649648,1909.6,1909.4,5.23715]
[1742275470480,4.64649648,1909.5,1909.4,10.47426]
[1742275470816,7.64649648,1909.5,1909.4,10.965604]
[1742275471377,7.64649648,1909.5,1909.4,5.728454]
[1742275471993,7.64649648,1909.5,1909.4,6.12151921]
[1742275473090,5.78782757,1909.5,1909.4,6.12151921]
[1742275479838,5.78782757,1909.5,1909.4,8.59036213]
[1742275482615,2.78782757,1909.6,1909.5,5.23697]
[1742275483140,0.7775,1909.9,1909.8,5.23615]
[1742275483341,9.35315514,1909.9,1909.8,5.23615]
[1742275484322,3.7775,1909.9,1909.8,5.23615]
[1742275484521,6.56532757,1909.9,1909.8,5.23615]
[1742275485129,5.78782757,1909.9,1909.8,5.23615]
[1742275490868,2.78782757,1909.9,1909.8,5.23615]
[1742275493778,5.78782757,1909.9,1909.8,5.23615]
[1742275494068,8.57565514,1909.9,1909.8,5.23615]
[1742275494273,5.78782757,1909.9,1909.8,5.23615]
[1742275498581,3.7833,1910.3,1910.0,5.2356]
[1742275498740,8.6633,1910.3,1910.0,5.2356]
[1742275498938,13.89811,1910.3,1910.0,5.2356]
[1742275499378,3.7833,1910.3,1910.0,5.23551]
[1742275499675,3.7833,1910.3,1910.1,5.23518]
[1742275500052,2.78782757,1910.2,1910.1,5.23518]
[1742275504392,2.78782757,1910.2,1910.1,6.282255]
[1742275505159,2.78782757,1910.2,1910.1,5.23518]
[1742275510071,3.7833,1910.3,1910.1,10.47032]
[1742275510271,2.78782757,1910.2,1910.1,5.23514]
[1742275515905,5.78782757,1910.2,1910.1,5.23514]
[1742275516710,3.0,1910.2,1910.1,6.06584]
[1742275516928,3.0,1910.2,1910.1,7.195972]
[1742275517838,3.0,1910.2,1910.1,7.58808092]
[1742275519316,5.78782757,1910.3,1910.2,5.23505]
[1742275522494,3.0,1910.3,1910.2,5.23505]
[1742275522824,0.755,1910.6,1910.4,5.23439]
[1742275523180,0.755,1910.6,1910.4,10.46875]
[1742275523714,0.755,1910.6,1910.4,5.23436]
[1742275523917,0.755,1910.6,1910.4,10.46868]
[1742275524159,0.755,1910.6,1910.5,5.23423]
[1742275524348,3.54282757,1910.6,1910.5,5.23423]
[1742275524720,3.0,1910.5,1910.4,5.23432]
[1742275524966,2.78782757,1910.5,1910.4,5.23432]
[1742275529760,6.788,1910.9,1910.8,5.23341]
[1742275529964,2.78782757,1910.9,1910.8,5.23341]
[1742275530437,2.78782757,1910.9,1910.7,5.23356]
[1742275530638,2.78782757,1910.8,1910.7,5.23356]
[1742275534170,6.00059,1911.1,1910.7,5.23356]
[1742275534171,2.78782757,1910.9,1910.8,5.2332]
[1742275534868,3.768,1911.1,1910.8,5.23323]
[1742275534869,0.768,1911.1,1910.8,5.23323]
[1742275535164,5.78782757,1910.9,1910.8,5.23323]
[1742275538186,5.78782757,1910.9,1910.7,6.356835]
[1742275538471,6.60172757,1910.8,1910.5,5.23411]
[1742275538679,2.78782757,1910.6,1910.5,5.23411]
[1742275539064,2.78782757,1910.6,1910.4,5.23447]
[1742275539269,2.78782757,1910.5,1910.4,5.23447]
[1742275540146,2.78782757,1910.5,1910.4,6.769083]
[1742275541284,4.64133226,1910.5,1910.4,6.769083]
[1742275541579,15.32212975,1910.8,1910.4,6.769083]
[1742275541580,4.64133226,1910.7,1910.6,5.23383]
[1742275543837,0.8105,1911.0,1910.8,5.23326]
[1742275544266,7.877,1911.1,1910.8,5.23322]
[1742275544467,8.6875,1911.1,1910.8,5.23322]
[1742275544678,8.6875,1911.1,1910.7,5.23356]
[1742275544679,15.835335,1911.1,1910.7,5.23356]
[1742275545084,15.835335,1911.1,1910.7,10.46714]
[1742275545245,4.64133226,1910.8,1910.7,5.23356]
[1742275546384,4.64133226,1910.8,1910.6,10.46768]
[1742275546540,4.64133226,1910.7,1910.6,5.23384]
[1742275546744,3.0,1911.1,1910.7,0.806]
[1742275546993,5.45943226,1911.2,1910.9,5.23287]
[1742275546994,4.64133226,1911.0,1910.9,5.23287]
[1742275549290,4.64133226,1911.0,1910.8,5.23329]
[1742275549467,4.64133226,1910.9,1910.8,5.23329]
[1742275552664,4.64133226,1910.9,1910.7,10.46714]
[1742275552995,4.64133226,1910.8,1910.7,5.23356]
[1742275553494,4.64133226,1910.8,1910.6,5.23384]